{"text_format":"3","workbook":"xlsx","n_sheets":12,"sheets":["Tabella 1","Tabella 2","Tabella 3","Tabella 4","Tabella 5","Tabella 6","Tabella 7","Tabella 8","Tabella 9","Tabella 10","Tabella 11","Tabella 12"],"not_rendered":{"defined_names":13},"read":"whole","date_system":"1900"}

{"sheet":"Tabella 1","index":0,"n_rows":27,"n_cols":5,"rows_kept":27,"merged":[[1,0,1,4],[5,0,7,1],[5,2,5,4]]}
[]
["Tabella 1: oneri generali  relativi al sostegno delle energie da fonti rinnovabili ed alla cogenerazione CIP 6/92 per le utenze in bassa tensione e per le utenze in media, alta e altissima tensione"]
["CLASSE DI AGEVOLAZIONE: 0"]
[]
[]
["Tipologie di contratto di cui al comma 2.2 del TIT",null,"Relativi al sostegno delle energie da fonti  rinnovabili ed alla cogenerazione CIP 6/92 (ASOS)"]
[null,null,"Quota fissa","Quota potenza ","Quota energia"]
[null,null,"centesimi di euro/punto di prelievo/anno","centesimi di euro/kW per anno ","centesimi di euro/kWh"]
["lettera a)","Utenze domestiche in bassa tensione"]
[null,"di cui: residenti",null,null,{"v":0,"d":"0.0000"}]
[null,"di cui: non residenti",{"v":0,"d":"0.00"},null,{"v":0,"d":"0.0000"}]
["lettera b)","Utenze in bassa tensione di illuminazione pubblica",null,null,3.4097]
["lettera c)","Utenze in bassa tensione per alimentazione esclusiva dei punti di ricarica di veicoli elettrici in luoghi accessibili al pubblico",null,null,{"v":4.829599999999999,"d":"4.8296"}]
["lettera d)","Altre utenze in bassa tensione con potenza disponibile fino a 16,5 kW"]
[null,"- per potenze impegnate inferiori o uguali a 1.5 kW",{"v":0,"d":"0.00"},{"v":0,"d":"0.00"},{"v":0,"d":"0.0000"}]
[null,"- per potenze impegnate superiori a 1.5 kW e inferiori o uguali a 3 kW",{"v":0,"d":"0.00"},{"v":0,"d":"0.00"},{"v":0,"d":"0.0000"}]
[null,"- per potenze impegnate superiori a 3 kW e inferiori o uguali a 6 kW",{"v":0,"d":"0.00"},{"v":0,"d":"0.00"},{"v":0,"d":"0.0000"}]
[null,"- per potenze impegnate superiori a 6 kW e inferiori o uguali a 10 kW",{"v":0,"d":"0.00"},{"v":0,"d":"0.00"},{"v":0,"d":"0.0000"}]
[null,"- per potenze impegnate superiori a 10 kW",{"v":0,"d":"0.00"},{"v":0,"d":"0.00"},{"v":0,"d":"0.0000"}]
[null,"Altre utenze in bassa tensione con potenza disponibile superiore a 16,5 kW",924.96,{"v":1060.8,"d":"1,060.80"},{"v":2.8590000000000004,"d":"2.8590"}]
["lettera e)","Utenze in media tensione di illuminazione pubblica",null,null,3.1357]
["lettera f)","Altre utenze in media tensione con potenza disponibile fino a 100 kW",{"v":24347.399999999998,"d":"24,347.40"},{"v":1173,"d":"1,173.00"},2.8161]
[null,"Altre utenze in media tensione con potenza disponibile superiore a 100 kW e inferiore o uguale a 500 kW",{"v":22735.319999999996,"d":"22,735.32"},{"v":1053.3600000000001,"d":"1,053.36"},{"v":2.8139000000000003,"d":"2.8139"}]
[null,"Altre utenze in media tensione con potenza disponibile superiore a 500 kW ",{"v":22244.760000000002,"d":"22,244.76"},924.12,{"v":2.8121000000000005,"d":"2.8121"}]
["lettera g)","Utenze in alta tensione",{"v":757679.04,"d":"757,679.04"},843.84,2.6036]
["lettera h)","Utenze in altissima tensione, con tensione inferiore a 380 kV",{"v":757679.04,"d":"757,679.04"},843.84,2.5956]
["lettera i)","Utenze in altissima tensione, con tensione uguale o superiore a 380 kV",{"v":757679.04,"d":"757,679.04"},843.84,2.5956]

{"sheet":"Tabella 2","index":1,"n_rows":27,"n_cols":5,"rows_kept":27,"merged":[[1,0,1,4],[5,0,7,1],[5,2,5,4]]}
[]
["Tabella 2: oneri generali  relativi al sostegno delle energie da fonti rinnovabili ed alla cogenerazione CIP 6/92 per le utenze in bassa tensione e per le utenze in media, alta e altissima tensione"]
["CLASSI DI AGEVOLAZIONE: VAL.1, VAL.2, VAL.3 e VAL.4"]
[]
[]
["Tipologie di contratto di cui al comma 2.2 del TIT",null,"Relativi al sostegno delle energie da fonti  rinnovabili ed alla cogenerazione CIP 6/92 (ASOS)"]
[null,null,"Quota fissa","Quota potenza ","Quota energia"]
[null,null,"centesimi di euro/punto di prelievo/anno","centesimi di euro/kW per anno ","centesimi di euro/kWh"]
["lettera a)","Utenze domestiche in bassa tensione"]
[null,"di cui: residenti"]
[null,"di cui: non residenti"]
["lettera b)","Utenze in bassa tensione di illuminazione pubblica"]
["lettera c)","Utenze in bassa tensione per alimentazione esclusiva dei punti di ricarica di veicoli elettrici in luoghi accessibili al pubblico"]
["lettera d)","Altre utenze in bassa tensione con potenza disponibile fino a 16,5 kW"]
[null,"- per potenze impegnate inferiori o uguali a 1.5 kW",{"v":0,"d":"0.00"},{"v":0,"d":"0.00"},{"v":0,"d":"0.0000"}]
[null,"- per potenze impegnate superiori a 1.5 kW e inferiori o uguali a 3 kW",{"v":0,"d":"0.00"},{"v":0,"d":"0.00"},{"v":0,"d":"0.0000"}]
[null,"- per potenze impegnate superiori a 3 kW e inferiori o uguali a 6 kW",{"v":0,"d":"0.00"},{"v":0,"d":"0.00"},{"v":0,"d":"0.0000"}]
[null,"- per potenze impegnate superiori a 6 kW e inferiori o uguali a 10 kW",{"v":0,"d":"0.00"},{"v":0,"d":"0.00"},{"v":0,"d":"0.0000"}]
[null,"- per potenze impegnate superiori a 10 kW",{"v":0,"d":"0.00"},{"v":0,"d":"0.00"},{"v":0,"d":"0.0000"}]
[null,"Altre utenze in bassa tensione con potenza disponibile superiore a 16,5 kW",{"v":0,"d":"0.00"},{"v":0,"d":"0.00"},{"v":0,"d":"0.0000"}]
["lettera e)","Utenze in media tensione di illuminazione pubblica"]
["lettera f)","Altre utenze in media tensione con potenza disponibile fino a 100 kW",{"v":0,"d":"0.00"},{"v":0,"d":"0.00"},{"v":0,"d":"0.0000"}]
[null,"Altre utenze in media tensione con potenza disponibile superiore a 100 kW e inferiore o uguale a 500 kW",{"v":0,"d":"0.00"},{"v":0,"d":"0.00"},{"v":0,"d":"0.0000"}]
[null,"Altre utenze in media tensione con potenza disponibile superiore a 500 kW ",{"v":0,"d":"0.00"},{"v":0,"d":"0.00"},{"v":0,"d":"0.0000"}]
["lettera g)","Utenze in alta tensione",{"v":0,"d":"0.00"},{"v":0,"d":"0.00"},{"v":0,"d":"0.0000"}]
["lettera h)","Utenze in altissima tensione, con tensione inferiore a 380 kV",{"v":0,"d":"0.00"},{"v":0,"d":"0.00"},{"v":0,"d":"0.0000"}]
["lettera i)","Utenze in altissima tensione, con tensione uguale o superiore a 380 kV",{"v":0,"d":"0.00"},{"v":0,"d":"0.00"},{"v":0,"d":"0.0000"}]

{"sheet":"Tabella 3","index":2,"n_rows":27,"n_cols":5,"rows_kept":27,"merged":[[1,0,1,4],[5,0,7,1],[5,2,5,4]]}
[]
["Tabella 3: oneri generali  relativi al sostegno delle energie da fonti rinnovabili ed alla cogenerazione CIP 6/92 per le utenze in bassa tensione e per le utenze in media, alta e altissima tensione"]
["CLASSE DI AGEVOLAZIONE: FAT.1"]
[]
[]
["Tipologie di contratto di cui al comma 2.2 del TIT",null,"Relativi al sostegno delle energie da fonti  rinnovabili ed alla cogenerazione CIP 6/92 (ASOS)"]
[null,null,"Quota fissa","Quota potenza ","Quota energia"]
[null,null,"centesimi di euro/punto di prelievo/anno","centesimi di euro/kW per anno ","centesimi di euro/kWh"]
["lettera a)","Utenze domestiche in bassa tensione"]
[null,"di cui: residenti"]
[null,"di cui: non residenti"]
["lettera b)","Utenze in bassa tensione di illuminazione pubblica"]
["lettera c)","Utenze in bassa tensione per alimentazione esclusiva dei punti di ricarica di veicoli elettrici in luoghi accessibili al pubblico"]
["lettera d)","Altre utenze in bassa tensione con potenza disponibile fino a 16,5 kW"]
[null,"- per potenze impegnate inferiori o uguali a 1.5 kW",{"v":0,"d":"0.00"},{"v":0,"d":"0.00"},{"v":0,"d":"0.0000"}]
[null,"- per potenze impegnate superiori a 1.5 kW e inferiori o uguali a 3 kW",{"v":0,"d":"0.00"},{"v":0,"d":"0.00"},{"v":0,"d":"0.0000"}]
[null,"- per potenze impegnate superiori a 3 kW e inferiori o uguali a 6 kW",{"v":0,"d":"0.00"},{"v":0,"d":"0.00"},{"v":0,"d":"0.0000"}]
[null,"- per potenze impegnate superiori a 6 kW e inferiori o uguali a 10 kW",{"v":0,"d":"0.00"},{"v":0,"d":"0.00"},{"v":0,"d":"0.0000"}]
[null,"- per potenze impegnate superiori a 10 kW",{"v":0,"d":"0.00"},{"v":0,"d":"0.00"},{"v":0,"d":"0.0000"}]
[null,"Altre utenze in bassa tensione con potenza disponibile superiore a 16,5 kW",452.64,519.12,1.3639]
["lettera e)","Utenze in media tensione di illuminazione pubblica"]
["lettera f)","Altre utenze in media tensione con potenza disponibile fino a 100 kW",{"v":11915.039999999999,"d":"11,915.04"},574.08,{"v":1.343,"d":"1.3430"}]
[null,"Altre utenze in media tensione con potenza disponibile superiore a 100 kW e inferiore o uguale a 500 kW",{"v":11126.039999999999,"d":"11,126.04"},515.52,1.3419]
[null,"Altre utenze in media tensione con potenza disponibile superiore a 500 kW ",{"v":10885.92,"d":"10,885.92"},452.28,{"v":1.341,"d":"1.3410"}]
["lettera g)","Utenze in alta tensione",{"v":360479.88,"d":"360,479.88"},401.52,1.2045]
["lettera h)","Utenze in altissima tensione, con tensione inferiore a 380 kV",{"v":360479.88,"d":"360,479.88"},401.52,1.2007]
["lettera i)","Utenze in altissima tensione, con tensione uguale o superiore a 380 kV",{"v":360479.88,"d":"360,479.88"},401.52,1.2007]

{"sheet":"Tabella 4","index":3,"n_rows":27,"n_cols":5,"rows_kept":27,"merged":[[1,0,1,4],[5,0,7,1],[5,2,5,4]]}
[]
["Tabella 4: oneri generali  relativi al sostegno delle energie da fonti rinnovabili ed alla cogenerazione CIP 6/92 per le utenze in bassa tensione e per le utenze in media, alta e altissima tensione"]
["CLASSE DI AGEVOLAZIONE: FAT.2"]
[]
[]
["Tipologie di contratto di cui al comma 2.2 del TIT",null,"Relativi al sostegno delle energie da fonti  rinnovabili ed alla cogenerazione CIP 6/92 (ASOS)"]
[null,null,"Quota fissa","Quota potenza ","Quota energia"]
[null,null,"centesimi di euro/punto di prelievo/anno","centesimi di euro/kW per anno ","centesimi di euro/kWh"]
["lettera a)","Utenze domestiche in bassa tensione"]
[null,"di cui: residenti"]
[null,"di cui: non residenti"]
["lettera b)","Utenze in bassa tensione di illuminazione pubblica"]
["lettera c)","Utenze in bassa tensione per alimentazione esclusiva dei punti di ricarica di veicoli elettrici in luoghi accessibili al pubblico"]
["lettera d)","Altre utenze in bassa tensione con potenza disponibile fino a 16,5 kW"]
[null,"- per potenze impegnate inferiori o uguali a 1.5 kW",{"v":0,"d":"0.00"},{"v":0,"d":"0.00"},{"v":0,"d":"0.0000"}]
[null,"- per potenze impegnate superiori a 1.5 kW e inferiori o uguali a 3 kW",{"v":0,"d":"0.00"},{"v":0,"d":"0.00"},{"v":0,"d":"0.0000"}]
[null,"- per potenze impegnate superiori a 3 kW e inferiori o uguali a 6 kW",{"v":0,"d":"0.00"},{"v":0,"d":"0.00"},{"v":0,"d":"0.0000"}]
[null,"- per potenze impegnate superiori a 6 kW e inferiori o uguali a 10 kW",{"v":0,"d":"0.00"},{"v":0,"d":"0.00"},{"v":0,"d":"0.0000"}]
[null,"- per potenze impegnate superiori a 10 kW",{"v":0,"d":"0.00"},{"v":0,"d":"0.00"},{"v":0,"d":"0.0000"}]
[null,"Altre utenze in bassa tensione con potenza disponibile superiore a 16,5 kW",{"v":329.15999999999997,"d":"329.16"},377.52,{"v":0.992,"d":"0.9920"}]
["lettera e)","Utenze in media tensione di illuminazione pubblica"]
["lettera f)","Altre utenze in media tensione con potenza disponibile fino a 100 kW",{"v":8665.44,"d":"8,665.44"},417.48,0.9767]
[null,"Altre utenze in media tensione con potenza disponibile superiore a 100 kW e inferiore o uguale a 500 kW",{"v":8091.719999999999,"d":"8,091.72"},374.88,0.9759]
[null,"Altre utenze in media tensione con potenza disponibile superiore a 500 kW ",{"v":7917.12,"d":"7,917.12"},328.92,0.9753]
["lettera g)","Utenze in alta tensione",{"v":262167.24,"d":"262,167.24"},291.96,{"v":0.876,"d":"0.8760"}]
["lettera h)","Utenze in altissima tensione, con tensione inferiore a 380 kV",{"v":262167.24,"d":"262,167.24"},291.96,0.8732]
["lettera i)","Utenze in altissima tensione, con tensione uguale o superiore a 380 kV",{"v":262167.24,"d":"262,167.24"},291.96,0.8732]

{"sheet":"Tabella 5","index":4,"n_rows":27,"n_cols":5,"rows_kept":27,"merged":[[1,0,1,4],[5,0,7,1],[5,2,5,4]]}
[]
["Tabella 5: oneri generali  relativi al sostegno delle energie da fonti rinnovabili ed alla cogenerazione CIP 6/92 per le utenze in bassa tensione e per le utenze in media, alta e altissima tensione"]
["CLASSE DI AGEVOLAZIONE: FAT.3"]
[]
[]
["Tipologie di contratto di cui al comma 2.2 del TIT",null,"Relativi al sostegno delle energie da fonti  rinnovabili ed alla cogenerazione CIP 6/92 (ASOS)"]
[null,null,"Quota fissa","Quota potenza ","Quota energia"]
[null,null,"centesimi di euro/punto di prelievo/anno","centesimi di euro/kW per anno ","centesimi di euro/kWh"]
["lettera a)","Utenze domestiche in bassa tensione"]
[null,"di cui: residenti"]
[null,"di cui: non residenti"]
["lettera b)","Utenze in bassa tensione di illuminazione pubblica"]
["lettera c)","Utenze in bassa tensione per alimentazione esclusiva dei punti di ricarica di veicoli elettrici in luoghi accessibili al pubblico"]
["lettera d)","Altre utenze in bassa tensione con potenza disponibile fino a 16,5 kW"]
[null,"- per potenze impegnate inferiori o uguali a 1.5 kW",{"v":0,"d":"0.00"},{"v":0,"d":"0.00"},{"v":0,"d":"0.0000"}]
[null,"- per potenze impegnate superiori a 1.5 kW e inferiori o uguali a 3 kW",{"v":0,"d":"0.00"},{"v":0,"d":"0.00"},{"v":0,"d":"0.0000"}]
[null,"- per potenze impegnate superiori a 3 kW e inferiori o uguali a 6 kW",{"v":0,"d":"0.00"},{"v":0,"d":"0.00"},{"v":0,"d":"0.0000"}]
[null,"- per potenze impegnate superiori a 6 kW e inferiori o uguali a 10 kW",{"v":0,"d":"0.00"},{"v":0,"d":"0.00"},{"v":0,"d":"0.0000"}]
[null,"- per potenze impegnate superiori a 10 kW",{"v":0,"d":"0.00"},{"v":0,"d":"0.00"},{"v":0,"d":"0.0000"}]
[null,"Altre utenze in bassa tensione con potenza disponibile superiore a 16,5 kW",{"v":205.79999999999998,"d":"205.80"},{"v":236.04000000000002,"d":"236.04"},{"v":0.62,"d":"0.6200"}]
["lettera e)","Utenze in media tensione di illuminazione pubblica"]
["lettera f)","Altre utenze in media tensione con potenza disponibile fino a 100 kW",{"v":5415.96,"d":"5,415.96"},{"v":261,"d":"261.00"},0.6105]
[null,"Altre utenze in media tensione con potenza disponibile superiore a 100 kW e inferiore o uguale a 500 kW",{"v":5057.28,"d":"5,057.28"},234.36,{"v":0.61,"d":"0.6100"}]
[null,"Altre utenze in media tensione con potenza disponibile superiore a 500 kW ",{"v":4948.200000000001,"d":"4,948.20"},205.56,0.6096]
["lettera g)","Utenze in alta tensione",{"v":163854.48,"d":"163,854.48"},182.52,0.5475]
["lettera h)","Utenze in altissima tensione, con tensione inferiore a 380 kV",{"v":163854.48,"d":"163,854.48"},182.52,0.5458]
["lettera i)","Utenze in altissima tensione, con tensione uguale o superiore a 380 kV",{"v":163854.48,"d":"163,854.48"},182.52,0.5458]

{"sheet":"Tabella 6","index":5,"n_rows":26,"n_cols":5,"rows_kept":26,"merged":[[4,0,6,1],[4,2,4,4]]}
[]
["Tabella 6: rimanenti oneri generali  per le utenze in bassa tensione e per le utenze in media, alta e altissima tensione "]
[]
[]
["Tipologie di contratto di cui al comma 2.2 del TIT",null,"Rimanenti oneri generali (ARIM)"]
[null,null,"Quota fissa","Quota potenza ","Quota energia"]
[null,null,"centesimi di euro/punto di prelievo/anno","centesimi di euro/kW per anno ","centesimi di euro/kWh"]
["lettera a)","Utenze domestiche in bassa tensione"]
[null,"di cui: residenti",null,null,{"v":0,"d":"0.0000"}]
[null,"di cui: non residenti",{"v":0,"d":"0.00"},null,{"v":0,"d":"0.0000"}]
["lettera b)","Utenze in bassa tensione di illuminazione pubblica",null,null,1.0709]
["lettera c)","Utenze in bassa tensione per alimentazione esclusiva dei punti di ricarica di veicoli elettrici in luoghi accessibili al pubblico",null,null,{"v":2.8576000000000006,"d":"2.8576"}]
["lettera d)","Altre utenze in bassa tensione con potenza disponibile fino a 16,5 kW"]
[null,"- per potenze impegnate inferiori o uguali a 1.5 kW",{"v":0,"d":"0.00"},{"v":0,"d":"0.00"},{"v":0,"d":"0.0000"}]
[null,"- per potenze impegnate superiori a 1.5 kW e inferiori o uguali a 3 kW",{"v":0,"d":"0.00"},{"v":0,"d":"0.00"},{"v":0,"d":"0.0000"}]
[null,"- per potenze impegnate superiori a 3 kW e inferiori o uguali a 6 kW",{"v":0,"d":"0.00"},{"v":0,"d":"0.00"},{"v":0,"d":"0.0000"}]
[null,"- per potenze impegnate superiori a 6 kW e inferiori o uguali a 10 kW",{"v":0,"d":"0.00"},{"v":0,"d":"0.00"},{"v":0,"d":"0.0000"}]
[null,"- per potenze impegnate superiori a 10 kW",{"v":0,"d":"0.00"},{"v":0,"d":"0.00"},{"v":0,"d":"0.0000"}]
[null,"Altre utenze in bassa tensione con potenza disponibile superiore a 16,5 kW",{"v":1197.1200000000001,"d":"1,197.12"},{"v":1373.16,"d":"1,373.16"},0.4781]
["lettera e)","Utenze in media tensione di illuminazione pubblica",null,null,0.7261]
["lettera f)","Altre utenze in media tensione con potenza disponibile fino a 100 kW",{"v":31515.96,"d":"31,515.96"},{"v":1518.48,"d":"1,518.48"},0.4227]
[null,"Altre utenze in media tensione con potenza disponibile superiore a 100 kW e inferiore o uguale a 500 kW",{"v":29429.400000000005,"d":"29,429.40"},{"v":1363.5600000000002,"d":"1,363.56"},{"v":0.41980000000000006,"d":"0.4198"}]
[null,"Altre utenze in media tensione con potenza disponibile superiore a 500 kW ",{"v":28794.239999999998,"d":"28,794.24"},{"v":1196.1600000000003,"d":"1,196.16"},{"v":0.41740000000000005,"d":"0.4174"}]
["lettera g)","Utenze in alta tensione",{"v":953494.92,"d":"953,494.92"},{"v":1061.76,"d":"1,061.76"},0.0564]
["lettera h)","Utenze in altissima tensione, con tensione inferiore a 380 kV",{"v":953494.92,"d":"953,494.92"},{"v":1061.76,"d":"1,061.76"},0.0464]
["lettera i)","Utenze in altissima tensione, con tensione uguale o superiore a 380 kV",{"v":953494.92,"d":"953,494.92"},{"v":1061.76,"d":"1,061.76"},0.0464]

{"sheet":"Tabella 7","index":6,"n_rows":13,"n_cols":11,"rows_kept":13,"merged":[[1,0,1,10],[4,0,6,0],[4,1,4,3],[4,4,4,6],[4,8,4,10]]}
[]
["Tabella 7: componenti tariffarie ASOS, ARIM, UC3 e UC6 per il soggetto di cui al comma 32.1 del TIT"]
[]
[]
[null,"Relativi al sostegno delle energie da fonti  rinnovabili ed alla cogenerazione CIP 6/92 (ASOS)",null,null,"Rimanenti oneri generali (ARIM)",null,null,"UC3","UC6"]
[null,"Quota fissa","Quota potenza ","Quota energia","Quota fissa","Quota potenza ","Quota energia","Quota energia","Quota fissa","Quota potenza ","Quota energia"]
[null,"centesimi di euro/punto di prelievo/anno","centesimi di euro/kW per anno ","centesimi di euro/kWh","centesimi di euro/punto di prelievo/anno","centesimi di euro/kW per anno ","centesimi di euro/kWh","centesimi di euro/kWh","centesimi di euro/punto di prelievo/anno","centesimi di euro/kW per anno ","centesimi di euro/kWh"]
["RFI - Rete Ferroviaria Italiana S.p.A.. Quantitativi di energia elettrica per uso trazione"]
["Su linee convenzionali a 3 kV, corrente continua"]
["Fornitura base entro i limiti previsti dall'articolo 4  del decreto del Presidente della Repubblica 22 maggio 1963, n.730"]
["Fornitura eccedenza entro i limiti previsti dall'articolo 4  del decreto del Presidente della Repubblica 22 maggio 1963, n.730",null,null,0.1822,null,null,0.0615]
["Fornitura oltre i limiti previsti dall'articolo 4 del del decreto del Presidente della Repubblica 22 maggio 1963, n.730",null,null,2.6036,null,null,0.0564,{"v":0.02,"d":"0.020"}]
["Su linee appositamente costruite per l'alta velocità e alimentate a 25 kV corrente alternata",{"v":757679.04,"d":"757,679.04"},843.84,2.6036,{"v":953494.92,"d":"953,494.92"},{"v":1061.76,"d":"1,061.76"},0.0564,{"v":0.02,"d":"0.020"}]

{"sheet":"Tabella 8","index":7,"n_rows":18,"n_cols":8,"rows_kept":18,"merged":[[1,0,1,7],[3,0,6,0],[3,1,6,1],[3,2,6,2],[3,3,3,7],[4,3,4,7],[5,3,6,3],[5,4,6,4],[5,5,6,5],[5,6,5,7],[7,0,8,0],[9,0,10,0],[11,0,12,0],[13,0,14,0]]}
[]
["Tabella 8: Componente tariffaria RE"]
[]
["Classe di agevolazione","Scaglione di consumo","Consumo annuo (smc/anno)","componente tariffaria RE\ncomponente della tariffa obbligatoria per i servizi di distribuzione e misura di cui al comma 42.3, lettera d), della RTDG"]
[{"$nulls":3},"Centesimi di euro/standard metro cubo"]
[{"$nulls":3},"Aliquota complessiva RE","Quota parte elemento REG","Quota parte elemento RETEE","REmin"]
[{"$nulls":6},"Quota parte destinata al conto di cui all'art. 79 della RTDG","Quota parte destinata al conto di cui al comma 41.1, lettera r), del TIT"]
["CLASSE 0","1-6","fino a 200.000",{"v":0,"d":"0.0000"},{"v":0,"d":"0.0000"},{"v":0,"d":"0.0000"},{"v":0,"d":"0.0000"},{"v":0,"d":"0.0000"}]
[null,"7-8","oltre 200.000",{"v":0,"d":"0.0000"},{"v":0,"d":"0.0000"},{"v":0,"d":"0.0000"},{"v":0,"d":"0.0000"},{"v":0,"d":"0.0000"}]
["CLASSE FAT","1-6","fino a 200.000",{"v":0,"d":"0.0000"},{"v":0,"d":"0.0000"},{"v":0,"d":"0.0000"},{"v":0,"d":"0.0000"},{"v":0,"d":"0.0000"}]
[null,"7-8","oltre 200.000",{"v":0,"d":"0.0000"},{"v":0,"d":"0.0000"},{"v":0,"d":"0.0000"},{"v":0,"d":"0.0000"},{"v":0,"d":"0.0000"}]
["CLASSE VAL","1-6","fino a 200.000","0,0000 (1)",{"v":0,"d":"0.0000"},{"v":0,"d":"0.0000"},{"v":0,"d":"0.0000"},{"v":0,"d":"0.0000"}]
[null,"7-8","oltre 200.000","0,0000 (1)",{"v":0,"d":"0.0000"},{"v":0,"d":"0.0000"},{"v":0,"d":"0.0000"},{"v":0,"d":"0.0000"}]
["CLASSE GNE","1-6","fino a 200.000","0,0000 (1)",{"v":0,"d":"0.0000"},{"v":0,"d":"0.0000"},{"v":0,"d":"0.0000"},{"v":0,"d":"0.0000"}]
[null,"7-8","oltre 200.000","0,0000 (1)",{"v":0,"d":"0.0000"},{"v":0,"d":"0.0000"},{"v":0,"d":"0.0000"},{"v":0,"d":"0.0000"}]
[]
["NOTE"]
["(1) L'aliquota complessiva è uguale a REmin"]

{"sheet":"Tabella 9","index":8,"n_rows":14,"n_cols":7,"rows_kept":14,"merged":[[1,0,1,6],[3,0,6,0],[3,1,6,1],[3,2,3,6],[4,2,4,6],[5,2,6,2],[5,3,6,3],[5,4,6,4],[5,5,5,6]]}
[]
["Tabella 9: Componente tariffaria RET"]
[]
["Classe di agevolazione","Consumo annuo (smc/anno)","Componente tariffaria RET\nComponente tariffaria di cui al comma 36.1, lettera c) della RTTG"]
[null,null,"Centesimi di euro/standard metro cubo"]
[null,null,"Aliquota complessiva \nRET","Quota parte elemento RETG","Quota parte elemento RETEE","REmin"]
[{"$nulls":5},"Quota parte destinata al conto di cui all'art. 79 della RTDG","Quota parte destinata al conto di cui al comma 41.1, lettera r), del TIT"]
["CLASSE 0","qualsiasi",{"v":0,"d":"0.0000"},{"v":0,"d":"0.0000"},{"v":0,"d":"0.0000"},{"v":0,"d":"0.0000"},{"v":0,"d":"0.0000"}]
["CLASSE FAT","qualsiasi",{"v":0,"d":"0.0000"},{"v":0,"d":"0.0000"},{"v":0,"d":"0.0000"},{"v":0,"d":"0.0000"},{"v":0,"d":"0.0000"}]
["CLASSE VAL","qualsiasi","0,0000 (1)",{"v":0,"d":"0.0000"},{"v":0,"d":"0.0000"},{"v":0,"d":"0.0000"},{"v":0,"d":"0.0000"}]
["CLASSE GNE","qualsiasi","0,0000 (1)",{"v":0,"d":"0.0000"},{"v":0,"d":"0.0000"},{"v":0,"d":"0.0000"},{"v":0,"d":"0.0000"}]
[]
["NOTE"]
["(1) L'aliquota complessiva è uguale a REmin"]

{"sheet":"Tabella 10","index":9,"n_rows":8,"n_cols":5,"rows_kept":8,"merged":[[0,0,0,4]]}
["Tabella 10: Ammontare delle compensazioni per i clienti in stato di disagio economico (settore elettrico) di cui alla Tabella 1 dell'Appendice 2 all'Allegato A alla deliberazione 63/2021/R/com"]
[]
["Codice","Descrizione","Bonus ordinario (CCE) Anno 2023","Compensazione integrativa temporanea (CCI)  1° trim. 2023","Compensazione giornaliera totale\n1 gennaio - 31 marzo 2023"]
[null,null,"€/anno per POD","€/trimestre per POD","€/die per POD"]
["E0","Nessuna agevolazione ",{"v":0,"d":"0.00"},{"v":0,"d":"0.00"},{"$f":"ROUND(C5/365+D5/92,2)","v":{"v":0,"d":"0.00"}}]
["E1","Numerosità familiare 1-2 componenti",120.45,{"v":153,"d":"153.00"},{"$f":"ROUND(C6/365+D6/90,2)","v":2.03}]
["E2","Numerosità familiare 3-4 componenti",149.65,{"v":199.8,"d":"199.80"},{"$f":"ROUND(C7/365+D7/90,2)","v":2.63}]
["E3","Numerosità familiare oltre 4 componenti",{"v":167.9,"d":"167.90"},{"v":224.1,"d":"224.10"},2.95]

{"sheet":"Tabella 11","index":10,"n_rows":17,"n_cols":6,"rows_kept":17,"merged":[[1,0,1,5]]}
[]
["Tabella 11: Ammontare della compensazione per i clienti in stato di disagio fisico, di cui alla Tabella 1 dell'Appendice 2 all'Allegato D alla deliberazione 63/2021/R/com"]
[]
["Extra consumo rispetto a utente tipo (2700/kWh/anno)","Codici","Fasce di potenza","Bonus ordinario (CCE) Anno 2023","Compensazione integrativa temporanea (CCI)  1° trim. 2023","Compensazione giornaliera totale\n1 gennaio - 31 marzo 2023"]
[{"$nulls":3},"€/anno per POD","€/trimestre per POD","€/die per POD"]
["FASCIA MINIMA","E0F1","fino a 3 kW",{"v":189.79999999999998,"d":"189.80"},{"v":52.2,"d":"52.20"},{"$f":"ROUND(D6/365+E6/90,2)","v":{"v":1.1,"d":"1.10"}}]
["fino a 600 kWh/anno","E0F7","3,5 kW",229.95,{"v":54.9,"d":"54.90"},{"$f":"ROUND(D7/365+E7/90,2)","v":1.24}]
[null,"E0F10","4,0 kW",{"v":240.9,"d":"240.90"},{"v":57.6,"d":"57.60"},{"v":1.3,"d":"1.30"}]
[null,"E0F4","da 4,5 kW in su",441.65,{"v":60.300000000000004,"d":"60.30"},1.88]
["FASCIA MEDIA","E0F2","fino a 3 kW",310.25,{"v":95.4,"d":"95.40"},1.91]
["tra 600 e 1200 kWh/anno","E0F8","3,5 kW",{"v":335.8,"d":"335.80"},{"v":97.2,"d":"97.20"},{"v":2,"d":"2.00"}]
[null,"E0F11","4,0 kW",346.75,{"v":99.9,"d":"99.90"},2.06]
[null,"E0F5","da 4,5 kW in su",{"v":558.4499999999999,"d":"558.45"},{"v":102.60000000000001,"d":"102.60"},2.67]
["FASCIA MASSIMA","E0F3","fino a 3 kW",448.95,{"v":137.70000000000002,"d":"137.70"},2.76]
["oltre 1200 kWh/anno","E0F9","3,5 kW",{"v":459.9,"d":"459.90"},{"v":140.4,"d":"140.40"},2.82]
[null,"E0F12","4,0 kW",{"v":474.5,"d":"474.50"},{"v":143.1,"d":"143.10"},2.89]
[null,"E0F6","da 4,5 kW in su",675.25,{"v":144.9,"d":"144.90"},3.46]

{"sheet":"Tabella 12","index":11,"n_rows":42,"n_cols":8,"rows_kept":42,"merged":[[1,0,1,7]]}
[]
["Tabella 12: Ammontare delle compensazioni per i clienti in stato di disagio economico (settore gas) di cui alla Tabella 2 dell'Appendice 2 all'Allegato A alla deliberazione 63/2021/R/com"]
[]
[{"$nulls":6},"Ammontare della compensazione per i clienti domestici "]
[{"$nulls":5},"Bonus ordinario (CCG) Anno 2023","Compensazione integrativa temporanea (CCI)  \n1° trim. 2023","Compensazione giornaliera totale\n1 gennaio - 31 marzo 2023"]
["Zona climatica (z)","Nucleo familiare","Categoria d'uso",null,"Codici","€/anno per PDR","€/trimestre per PDR","€/die per PDR"]
[null,"fino a 4 componenti (j=1)","u=AC","Acqua calda sanitaria e/o Uso cottura","GAC1Ad",{"v":29.2,"d":"29.20"},{"v":57.6,"d":"57.60"},{"$f":"ROUND(F7/365+G7/90,2)","v":0.72}]
[null,null,"u=R","Riscaldamento","GR1Ad",{"v":43.8,"d":"43.80"},{"v":160.20000000000002,"d":"160.20"},{"$f":"ROUND(F8/365+G8/90,2)","v":{"v":1.9,"d":"1.90"}}]
["A",null,"u=ACR","Acqua calda sanitaria e/o Uso cottura + Riscaldamento","GACR1Ad",{"v":73,"d":"73.00"},{"v":217.8,"d":"217.80"},2.62]
[null,"oltre a 4 componenti (j=2)","u=AC","Acqua calda sanitaria e/o Uso cottura","GAC2Ad",{"v":36.5,"d":"36.50"},{"v":83.7,"d":"83.70"},1.03]
[null,null,"u=R","Riscaldamento","GR2Ad",{"v":43.8,"d":"43.80"},{"v":173.70000000000005,"d":"173.70"},2.05]
[null,null,"u=ACR","Acqua calda sanitaria e/o Uso cottura + Riscaldamento","GACR2Ad",{"v":80.3,"d":"80.30"},{"v":257.40000000000003,"d":"257.40"},3.08]
[null,"fino a 4 componenti (j=1)","u=AC","Acqua calda sanitaria e/o Uso cottura","GAC1Bd",{"v":29.2,"d":"29.20"},{"v":57.6,"d":"57.60"},0.72]
[null,null,"u=R","Riscaldamento","GR1Bd",{"v":43.8,"d":"43.80"},{"v":160.20000000000002,"d":"160.20"},{"v":1.9,"d":"1.90"}]
["B",null,"u=ACR","Acqua calda sanitaria e/o Uso cottura + Riscaldamento","GACR1Bd",{"v":73,"d":"73.00"},{"v":217.8,"d":"217.80"},2.62]
[null,"oltre a 4 componenti (j=2)","u=AC","Acqua calda sanitaria e/o Uso cottura","GAC2Bd",{"v":36.5,"d":"36.50"},{"v":83.7,"d":"83.70"},1.03]
[null,null,"u=R","Riscaldamento","GR2Bd",{"v":43.8,"d":"43.80"},{"v":173.70000000000005,"d":"173.70"},2.05]
[null,null,"u=ACR","Acqua calda sanitaria e/o Uso cottura + Riscaldamento","GACR2Bd",{"v":80.3,"d":"80.30"},{"v":257.40000000000003,"d":"257.40"},3.08]
[null,"fino a 4 componenti (j=1)","u=AC","Acqua calda sanitaria e/o Uso cottura","GAC1Cd",{"v":29.2,"d":"29.20"},{"v":57.6,"d":"57.60"},0.72]
[null,null,"u=R","Riscaldamento","GR1Cd",{"v":47.44999999999999,"d":"47.45"},{"v":168.3,"d":"168.30"},{"v":2,"d":"2.00"}]
["C",null,"u=ACR","Acqua calda sanitaria e/o Uso cottura + Riscaldamento","GACR1Cd",{"v":76.64999999999999,"d":"76.65"},{"v":225.9,"d":"225.90"},2.72]
[null,"oltre a 4 componenti (j=2)","u=AC","Acqua calda sanitaria e/o Uso cottura","GAC2Cd",{"v":36.5,"d":"36.50"},{"v":83.7,"d":"83.70"},1.03]
[null,null,"u=R","Riscaldamento","GR2Cd",{"v":58.39999999999999,"d":"58.40"},{"v":192.60000000000002,"d":"192.60"},{"v":2.3,"d":"2.30"}]
[null,null,"u=ACR","Acqua calda sanitaria e/o Uso cottura + Riscaldamento","GACR2Cd",{"v":94.89999999999999,"d":"94.90"},{"v":276.3,"d":"276.30"},3.33]
[null,"fino a 4 componenti (j=1)","u=AC","Acqua calda sanitaria e/o Uso cottura","GAC1Dd",{"v":29.2,"d":"29.20"},{"v":57.6,"d":"57.60"},0.72]
[null,null,"u=R","Riscaldamento","GR1Dd",62.05,{"v":218.70000000000002,"d":"218.70"},{"v":2.6,"d":"2.60"}]
["D",null,"u=ACR","Acqua calda sanitaria e/o Uso cottura + Riscaldamento","GACR1Dd",91.25,{"v":276.3,"d":"276.30"},3.32]
[null,"oltre a 4 componenti (j=2)","u=AC","Acqua calda sanitaria e/o Uso cottura","GAC2Dd",{"v":36.5,"d":"36.50"},{"v":83.7,"d":"83.70"},1.03]
[null,null,"u=R","Riscaldamento","GR2Dd",{"v":76.64999999999999,"d":"76.65"},{"v":253.8,"d":"253.80"},3.03]
[null,null,"u=ACR","Acqua calda sanitaria e/o Uso cottura + Riscaldamento","GACR2Dd",{"v":113.14999999999999,"d":"113.15"},{"v":337.5,"d":"337.50"},4.06]
[null,"fino a 4 componenti (j=1)","u=AC","Acqua calda sanitaria e/o Uso cottura","GAC1Ed",{"v":29.2,"d":"29.20"},{"v":57.6,"d":"57.60"},0.72]
[null,null,"u=R","Riscaldamento","GR1Ed",{"v":80.3,"d":"80.30"},{"v":259.2,"d":"259.20"},{"v":3.1,"d":"3.10"}]
["E",null,"u=ACR","Acqua calda sanitaria e/o Uso cottura + Riscaldamento","GACR1Ed",{"v":109.5,"d":"109.50"},{"v":316.8,"d":"316.80"},3.82]
[null,"oltre a 4 componenti (j=2)","u=AC","Acqua calda sanitaria e/o Uso cottura","GAC2Ed",{"v":36.5,"d":"36.50"},{"v":83.7,"d":"83.70"},1.03]
[null,null,"u=R","Riscaldamento","GR2Ed",{"v":98.54999999999998,"d":"98.55"},{"v":321.3,"d":"321.30"},3.84]
[null,null,"u=ACR","Acqua calda sanitaria e/o Uso cottura + Riscaldamento","GACR2Ed",{"v":135.04999999999998,"d":"135.05"},{"v":405,"d":"405.00"},4.87]
[null,"fino a 4 componenti (j=1)","u=AC","Acqua calda sanitaria e/o Uso cottura","GAC1Fd",{"v":29.2,"d":"29.20"},{"v":57.6,"d":"57.60"},0.72]
[null,null,"u=R","Riscaldamento","GR1Fd",98.55,{"v":312.3,"d":"312.30"},3.74]
["F",null,"u=ACR","Acqua calda sanitaria e/o Uso cottura + Riscaldamento","GACR1Fd",127.75,{"v":369.90000000000003,"d":"369.90"},4.46]
[null,"oltre a 4 componenti (j=2)","u=AC","Acqua calda sanitaria e/o Uso cottura","GAC2Fd",{"v":36.5,"d":"36.50"},{"v":83.7,"d":"83.70"},1.03]
[null,null,"u=R","Riscaldamento","GR2Fd",{"v":131.4,"d":"131.40"},{"v":386.1,"d":"386.10"},4.65]
[null,null,"u=ACR","Acqua calda sanitaria e/o Uso cottura + Riscaldamento","GACR2Fd",{"v":167.9,"d":"167.90"},{"v":469.8,"d":"469.80"},5.68]